Cogmind - Beta 14 @@@ ROGUE MODE // 2024.10.06 @ 20:14:14 Player: bluemonk Result: Destroyed by B-75 Beast via exploding Neutrino Reactor Performance ------------- Evolutions (4) 2000 Regions Visited (10) 2000 Robots Destroyed (129) 645 Value Destroyed (4851) 4851 Prototype IDs (16) 320 Alien Tech Used (0) 0 Bonus (1110) 1110 TOTAL SCORE: 10926 Bonus ------- High Alert Combat Kills 694 Follower Combat Kills 337 Entered Garrisons 200 Acquired ECA 300 Friendly Fire -421 Cogmind --------- Core Integrity 0/850 Matter 260/300 Energy 87/100 System Corruption 0% Temperature Cool (5) Movement Core (100) Ox1 Location -6/Factory Parts ------- > --- POWER (2) -------- (None) > --- PROPULSION (5) --- (None) > --- UTILITY (5) ------ Enhanced Optical Array Advanced Signal Interpreter Encrypted Comm Array Improved Target Analyzer Experimental Weapon Shielding > --- WEAPON (3) ------- Thermic Laser > --- INVENTORY (5) ---- Wheel VTOL Module Structural Scanner Terrain Scan Processor Peak State ------------ > --- POWER ------------ Light Angular Momentum Engine Light Fission Core > --- PROPULSION ------- Carbon-fiber Leg Flexi-carbon Leg Flexi-carbon Leg Armored Leg VTOL Module > --- UTILITY ---------- Large Storage Unit Enhanced Optical Array Advanced Signal Interpreter Encrypted Comm Array Microactuators > --- WEAPON ----------- Heavy Laser Magnetic Acceleration Cannon Spear > --- INVENTORY -------- Improved Deuterium Engine Reinforced Deuterium Engine Light Angular Momentum Engine Wheel VTOL Module VTOL Module VTOL Module Improved Cooling System Improved Cooling System Structural Scanner Terrain Scan Processor Shock Rifle Heavy Laser Heavy Assault Rifle Chainsword [Rating: 67] Favorites ----------- Power Improved Deuterium Engine Engine Improved Deuterium Engine Power Core Light Nuclear Core Propulsion Improved Flight Unit Treads Light Treads Leg Aluminum Leg Wheel Armored Huge Wheel Flight Unit Improved Flight Unit Utility Large Storage Unit Device Gravity Neutralizer Storage Large Storage Unit Processor Enhanced Optical Array Hackware System Shield Protection Improved Medium Armor Plating Weapon Gatling Laser Energy Gun Gatling Laser Energy Cannon Cooled Particle Cannon Ballistic Gun Autogun Ballistic Cannon Magnetic Acceleration Cannon Launcher Rocket Array Special Weapon Welding Torch Impact Weapon Maul Piercing Weapon Spear Build | -11 -10 -9 -9 -9 -7 -7 -7 -7 -7 -6 ------- Run | Yrd Mat Mat Sto Rec Fac Gar Fac Low Low Fac Slots Evolved 8 | . . 2 . . 4 . . . . 2 Power 1 | . . . . . 1 . . . . . Propulsion 3 | . . 2 . . . . . . . 1 Utility 3 | . . . . . 2 . . . . 1 Weapon 1 | . . . . . 1 . . . . . Parts Attached 145 | 6 3 6 28 . 6 26 31 1 6 32 Power 18 | 1 . . 4 . 1 5 3 . . 4 Engine 13 | 1 . . 3 . 1 2 3 . . 3 Core 5 | . . . 1 . . 3 . . . 1 Reactor . | . . . . . . . . . . . Propulsion 51 | 2 . 2 19 . . 7 11 . 2 8 Treads 3 | . . 1 2 . . . . . . . Leg 28 | 2 . 1 9 . . 2 7 . 2 5 Wheel 5 | . . . . . . . 3 . . 2 Hover . | . . . . . . . . . . . Flight 15 | . . . 8 . . 5 1 . . 1 Utility 29 | 1 3 1 2 . 4 3 4 1 . 10 Device 15 | . . 1 2 . 2 1 3 1 . 5 Storage 3 | 1 2 . . . . . . . . . Processor 5 | . . . . . 1 . . . . 4 Hackware 1 | . . . . . 1 . . . . . Protection 5 | . 1 . . . . 2 1 . . 1 Artifact . | . . . . . . . . . . . Weapon 47 | 2 . 3 3 . 1 11 13 . 4 10 Energy Gun 24 | 1 . 2 . . . 6 9 . 1 5 Energy Cannon 5 | . . 1 . . . . 2 . 1 1 Ballistic Gun 9 | 1 . . 1 . 1 4 . . . 2 Ballistic Cannon 1 | . . . . . . . . . . 1 Launcher 4 | . . . 2 . . . 2 . . . Special Weapon 1 | . . . . . . . . . . 1 Impact Weapon 1 | . . . . . . 1 . . . . Slashing Weapon . | . . . . . . . . . . . Piercing Weapon 2 | . . . . . . . . . 2 . Special Melee Weapon . | . . . . . . . . . . . Unidentified Prototypes 10 | . . 1 3 . . . 5 . . 1 Parts Lost 68 | . . . 7 . . 18 7 . 5 31 Power 11 | . . . 2 . . 4 . . . 5 Propulsion 23 | . . . 4 . . 5 2 . 2 10 Utility 10 | . . . . . . 3 2 . . 5 Weapon 24 | . . . 1 . . 6 3 . 3 11 Highest Loss Streak 19 | . . . 5 . . 8 2 . 5 19 To Critical Strikes . | . . . . . . . . . . . Average Slot Usage (%) 92 | . 97 100 97 88 92 96 88 100 95 83 Engine 10 | . 14 11 10 11 15 7 13 15 15 6 Core 2 | . . . . . . 6 . . . 3 Treads 1 | . . 11 3 . . . . . . . Leg 16 | . 28 33 26 . . . 15 30 27 18 Wheel 1 | . . . . . . . 6 . . 2 Flight 11 | . . . 12 44 30 28 . . . 2 Device 13 | . . 5 11 11 15 13 16 23 23 19 Storage 8 | . 14 11 11 11 7 7 7 7 7 5 Hackware 1 | . . . . . 1 5 . . . . Protection 2 | . 11 5 . . . 2 4 . . . Energy Gun 9 | . 14 15 10 . . 7 11 7 6 5 Energy Cannon 1 | . . 5 . . . . 3 7 6 1 Ballistic Gun 3 | . 14 . 2 . 7 8 1 . . 1 Launcher 3 | . . . 8 11 7 . 4 7 2 . Peak Build Rating 67 | 6 8 14 33 33 43 48 59 58 57 67 Average Rating 39 | 4 7 12 18 32 41 43 54 57 52 52 On Entrance 31 | . 6 8 14 33 33 43 46 57 58 53 Naked Turns . | . . . . . . . . . . . Heaviest Build 78 | 13 29 33 36 35 44 53 72 68 66 78 Greatest Support 84 | 20 20 30 43 32 32 32 84 74 71 71 Greatest Overweight (x) 18 | . 1 1 11 1 1 2 3 . 1 18 Average Overweight (x) . | . . . . 1 1 1 . . . 1 Largest Inventory Capacity 15 | 8 15 15 15 15 15 15 15 15 15 15 Average Capacity 14 | 7 10 15 15 15 15 15 15 15 15 13 Most Carried 15 | 6 12 14 15 15 14 15 15 15 15 15 Average Carried 13 | 2 9 11 14 14 11 13 14 15 11 9 Final Capacity 15 | 8 15 15 15 15 15 15 15 15 15 5 Final Carried 15 | 6 12 14 14 15 11 15 15 15 10 4 Class Distribution -------------------- 24% | Mutant 19% | Scavenger-Mutant 16% | Commander-Mutant 14% | Gunner 9% | Tank 8% | Scavenger-Tank 6% | Scavenger-Gunner Dominant Class ---------------- Mutant | -10/Materials Mutant | -9/Materials Commander-Mutant | -9/Storage Commander-Mutant | -9/Recycling Commander-Skirmisher | -7/Factory Scavenger-Mutant | -7/Garrison Gunner | -7/Factory Gunner | -7/Lower Caves Scavenger-Mutant | -7/Lower Caves Scavenger-Mutant | -6/Factory Resources | -11 -10 -9 -9 -9 -7 -7 -7 -7 -7 -6 ----------- Run | Yrd Mat Mat Sto Rec Fac Gar Fac Low Low Fac Matter Collected 2498 | 246 41 47 376 39 3 740 471 103 90 342 Remotely . | . . . . . . . . . . . Salvage Created 4381 | . 41 47 1228 49 3 883 1320 131 74 605 Parts 278 | . 1 8 78 2 1 58 88 8 2 32 Haulers Intercepted 1 | . . . 1 . . . . . . . Recyclers Shooed 3 | . . . . . . . 2 . . 1 Parts Field Recycled . | . . . . . . . . . . . Retrieved Matter . | . . . . . . . . . . . Parts Self-Destructed 9 | . . . . . . . . 8 1 . Prevented . | . . . . . . . . . . . Kills | -11 -10 -9 -9 -9 -7 -7 -7 -7 -7 -6 ------- Run | Yrd Mat Mat Sto Rec Fac Gar Fac Low Low Fac Combat Hostiles Destroyed 97 | . 1 3 22 1 . 28 23 3 3 13 Melee 5 | . . . . . . 1 . . . 4 Guns 43 | . 1 3 8 . . 19 9 . . 3 Cannons 8 | . . . . . . . 3 1 . 4 AOE 34 | . . . 13 1 . 7 10 2 1 . Classes Destroyed 17 | . 1 1 9 . . 1 3 . 2 . Worker 10 | . . . 2 . . . 8 . . . Builder 6 | . . . . . . . 6 . . . Tunneler 1 | . . . . . . . 1 . . . Hauler 1 | . . . 1 . . . . . . . Recycler 2 | . . . 1 . . . 1 . . . Mechanic 2 | . . . 1 . . . 1 . . . Operator 3 | . . . 1 . . . 1 . . 1 Watcher 4 | . . . 1 . 1 . 2 . . . Swarmer 29 | . . 3 3 . . 17 3 . . 3 Grunt 40 | . 1 . 16 . . 5 10 2 . 6 Brawler 4 | . . . . . . 1 2 1 . . Duelist 5 | . . . 1 . . . 3 . . 1 Protector 2 | . . . 1 . . . 1 . . . Sentry 13 | . . . 4 1 . 5 1 . 1 1 Hunter 2 | . . . . . . . . . 1 1 Programmer 4 | . . . . . . . 3 . . 1 Thief 1 | . . . . . . . . . 1 . Best Kill Streak 13 | . 1 3 10 1 1 13 13 3 2 5 Combat Bots Only 13 | . 1 3 7 1 . 13 6 3 2 5 Max Kills in Single Turn 9 | . 1 2 7 1 1 6 9 3 1 1 Gunslinging 1 | . . 1 1 . . 1 . . . . Exploded 5 | . . . 5 1 . 5 3 2 1 . Melee 1 | . . . . . . 1 . . . 1 Uniques/NPCs Destroyed . | . . . . . . . . . . . Combat | -11 -10 -9 -9 -9 -7 -7 -7 -7 -7 -6 -------- Run | Yrd Mat Mat Sto Rec Fac Gar Fac Low Low Fac Hostile Shots Fired 888 | . 3 6 86 . . 246 180 1 54 312 Missed 282 | . 1 3 25 . . 82 61 . 27 83 Damage Taken 8767 | . 30 22 894 . . 1797 1925 42 287 3770 Core 1634 | . . . 204 . . 314 213 8 40 855 Absorbed by Shields 238 | . . . . . . 145 . . . 93 Redirected to Shielding 9 | . . . . . . . . . . 9 Core Remaining (%) 66 | 100 100 . . 49 . . . . 17 . Volleys Fired 282 | . 3 3 57 1 2 78 58 1 11 68 Largest 3 | . 2 2 2 1 1 3 3 3 3 3 Hottest 190 | . 60 112 89 39 39 188 190 130 149 149 Shots Fired 529 | . 6 6 87 1 2 167 137 3 25 95 Gun 418 | . 6 6 77 . . 165 99 1 11 53 Cannon 82 | . . . . . . . 29 1 10 42 Launcher 29 | . . . 10 1 2 2 9 1 4 . Special . | . . . . . . . . . . . Kinetic 157 | . 3 . 20 . . 96 8 . . 30 Thermal 251 | . 3 6 57 . . 64 58 1 10 52 Explosive 19 | . . . . 1 2 2 9 1 4 . Electromagnetic 102 | . . . 10 . . 5 62 1 11 13 Robot Hit Streak 18 | . 5 2 5 2 4 18 12 4 10 10 Robot Miss Streak 7 | . . 2 3 . . 7 5 . 2 6 Penetration Max . | . . . . . . . . . . . Secondary Targets 7 | . . 1 1 . . 4 1 . . . Max Gunslinging Chain 1 | . . 1 1 . . 1 1 . . . Shots Hit Robots 314 | . 5 3 45 1 2 76 95 2 20 65 Core Hits 284 | . 3 3 48 1 2 67 109 9 10 32 Critical Kills . | . . . . . . . . . . . Critical Parts Destroyed . | . . . . . . . . . . . Critical Strikes 12 | . . . 3 . . . 1 . . 8 Burn 7 | . . . 3 . . . . . . 4 Blast 3 | . . . . . . . . . . 3 Corrupt 2 | . . . . . . . 1 . . 1 Melee Attacks 23 | . . . . . . 6 . . . 17 Impact 6 | . . . . . . 6 . . . . Slashing . | . . . . . . . . . . . Piercing 17 | . . . . . . . . . . 17 Sneak Attacks 1 | . . . . . . 1 . . . . Combat Hostiles 1 | . . . . . . 1 . . . . Follow-up Attacks . | . . . . . . . . . . . Damage Inflicted 9908 | . 60 51 1487 28 109 1902 3624 204 623 1820 Guns 4454 | . 58 51 600 . . 1373 1446 18 204 704 Cannons 1713 | . . . . . . . 583 27 228 875 Explosions 3415 | . . . 887 28 109 446 1595 159 191 . Melee 324 | . . . . . . 83 . . . 241 Ramming 2 | . 2 . . . . . . . . . Kinetic 1563 | . 26 . 143 . . 707 122 . . 565 Thermal 3934 | . 32 51 719 . . 868 1247 27 239 751 Explosive 2282 | . . . 102 28 109 172 1521 159 191 . Electromagnetic 1803 | . . . 523 . . 72 734 18 193 263 Impact 83 | . . . . . . 83 . . . . Slashing . | . . . . . . . . . . . Piercing 241 | . . . . . . . . . . 241 Highest Corruption 6 | . . . 2 2 . 4 6 6 6 . Average Corruption 4 | . . . 2 2 . 4 5 6 6 . Corruption Purged . | . . . . . . . . . . . Corruption Blocked . | . . . . . . . . . . . Effects 76 | . . . 1 3 . 19 44 6 3 . Message Errors 18 | . . . . 1 . 4 11 2 . . Matter Fused 14 | . . . . 1 . 5 4 2 2 . Heat Flow Errors 13 | . . . . . . 2 10 1 . . Energy Discharges 11 | . . . 1 1 . 4 5 . . . Parts Rejected 1 | . . . . . . . . . 1 . Parts Fused 1 | . . . . . . . 1 . . . Data Loss (minor) 10 | . . . . . . 2 8 . . . Data Loss (major) 2 | . . . . . . . 1 1 . . Misfires 3 | . . . . . . 1 2 . . . Alerts 1 | . . . . . . . 1 . . . Weapon Failures 2 | . . . . . . 1 1 . . . Overload Shots . | . . . . . . . . . . . Overflow Damage 76 | . . . . . . 50 . . 26 . Projectiles 17 | . . . . . . . . . 17 . Explosions 37 | . . . . . . 28 . . 9 . Melee 22 | . . . . . . 22 . . . . Knockbacks 2 | . . . . . . . . . . 2 Impact . | . . . . . . . . . . . Kinetic 2 | . . . . . . . . . . 2 Secondary . | . . . . . . . . . . . Self-Inflicted Damage 178 | . . . 90 . . . 10 31 47 . Shots 7 | . . . 2 . . . 1 2 2 . Rammed . | . . . . . . . . . . . Targets Rammed 1 | . 1 . . . . . . . . . Kicked 1 | . 1 . . . . . . . . . Crushed . | . . . . . . . . . . . Highest Temperature 539 | . 18 126 189 . . 432 481 221 60 539 Average Temperature 127 | . 15 67 52 . . 130 128 117 31 269 Received Heat Transfer 2835 | . 18 . 318 . . 304 555 9 102 1529 Effects 26 | . . . . . . 11 5 . . 10 Shutdowns 10 | . . . . . . 3 3 . . 4 Energy Bleed 1 | . . . . . . . . . . 1 Interference 11 | . . . . . . 7 1 . . 3 Short Circuit 1 | . . . . . . 1 . . . . Damage (minor) 1 | . . . . . . . . . . 1 Damage (major) 2 | . . . . . . . 1 . . 1 Siege Activations . | . . . . . . . . . . . Robots Corrupted 6 | . . . 1 . . 1 1 . 1 2 Combat Hostiles 5 | . . . . . . 1 1 . 1 2 Parts Fried 9 | . . . 1 . . 1 2 . 2 3 Impact Corruptions 1 | . . . . . . 1 . . . . Robots Melted 2 | . . . 1 . . . . . 1 . Combat Hostiles 2 | . . . 1 . . . . . 1 . Parts Melted 8 | . . . 4 . . . 2 . . 2 Heat Transferred 7677 | . 75 111 1618 . . 1693 1858 37 499 1786 Parts Sabotaged . | . . . . . . . . . . . Parts Stolen . | . . . . . . . . . . . Parts Stripped . | . . . . . . . . . . . Power Chain Reactions 5 | . . . 4 . . 1 . . . . Alert | -11 -10 -9 -9 -9 -7 -7 -7 -7 -7 -6 ------- Run | Yrd Mat Mat Sto Rec Fac Gar Fac Low Low Fac Peak Influence 1059 | . 34 93 833 394 183 883 1059 . . 438 Initial 463 | . . 14 39 324 165 128 463 . . 338 Average 476 | . 10 29 356 356 175 496 835 . . 338 Maximum Alert Level 3 | . . . 3 1 . 3 3 . . 2 Low Security (%) 18 | 100 100 100 21 . 100 11 . . . . Level 1 28 | . . . 44 100 . 19 . . . 79 Level 2 26 | . . . 19 . . 53 29 . . 20 Level 3 25 | . . . 14 . . 15 70 . . . Level 4 . | . . . . . . . . . . . Level 5 . | . . . . . . . . . . . High Security . | . . . . . . . . . . . Max Security . | . . . . . . . . . . . Squads Dispatched 17 | . . . 9 . . . 6 . . 2 Investigation 4 | . . . 2 . . . 2 . . . Extermination 3 | . . . . . . . 2 . . 1 Reinforcement 4 | . . . 3 . . . . . . 1 Assault 4 | . . . 2 . . . 2 . . . Garrison 2 | . . . 2 . . . . . . . Intercept . | . . . . . . . . . . . Searches Triggered . | . . . . . . . . . . . Construction Impeded 1 | . . . 1 . . . . . . . Haulers Reinforced . | . . . . . . . . . . . Active Scanning Responses . | . . . . . . . . . . . Cargo Convoy Interrupts . | . . . . . . . . . . . Stealth | -11 -10 -9 -9 -9 -7 -7 -7 -7 -7 -6 --------- Run | Yrd Mat Mat Sto Rec Fac Gar Fac Low Low Fac Distress Signals 2 | . . . . . . . 2 . . . Communications Jammed . | . . . . . . . . . . . Distress Signals . | . . . . . . . . . . . Times Spotted 125 | . 1 3 33 2 1 34 28 3 2 18 Peak Tracking Total 11 | . 1 3 9 1 1 11 5 3 1 4 Tactical Retreats 2 | . . . 1 . . . . . . 1 Traps | -11 -10 -9 -9 -9 -7 -7 -7 -7 -7 -6 ------- Run | Yrd Mat Mat Sto Rec Fac Gar Fac Low Low Fac Traps Triggered 18 | . . . 2 . . 13 3 . . . Indirectly 1 | . . . 1 . . . . . . . Trap Hack Attempts . | . . . . . . . . . . . Triggered . | . . . . . . . . . . . Disarmed . | . . . . . . . . . . . Reprogrammed . | . . . . . . . . . . . Reused . | . . . . . . . . . . . Traps Extracted . | . . . . . . . . . . . Installed . | . . . . . . . . . . . Triggered . | . . . . . . . . . . . Machines | -11 -10 -9 -9 -9 -7 -7 -7 -7 -7 -6 ---------- Run | Yrd Mat Mat Sto Rec Fac Gar Fac Low Low Fac Machines Disabled 16 | . . . 3 . . 3 10 . . . Max in Single Turn 5 | . . . 1 . . 1 5 . . . Garrison Relay 3 | . . . . . . 3 . . . . Machines Repaired . | . . . . . . . . . . . Machines Dismantled . | . . . . . . . . . . . Machines Sabotaged . | . . . . . . . . . . . Overloaded Fab Kills . | . . . . . . . . . . . Hacking | -11 -10 -9 -9 -9 -7 -7 -7 -7 -7 -6 --------- Run | Yrd Mat Mat Sto Rec Fac Gar Fac Low Low Fac Machines Accessed 37 | . 1 2 13 5 2 3 10 . . 1 Terminals 25 | . 1 1 11 3 1 3 5 . . . Fabricators 1 | . . . . . . . 1 . . . Repair Stations 1 | . . . . . . . 1 . . . Recycling Units 8 | . . 1 2 2 . . 2 . . 1 Scanalyzers . | . . . . . . . . . . . Garrison Access 2 | . . . . . 1 . 1 . . . Total Hacks 99 | . 2 7 32 13 10 11 23 . . 1 Successful 45 | . 1 4 17 9 4 . 9 . . 1 Failed 54 | . 1 3 15 4 6 11 14 . . . Catastrophic 8 | . . . 2 . 1 2 3 . . . Database Lockouts . | . . . . . . . . . . . Manual 2 | . . . 2 . . . . . . . Terminals 69 | . 2 4 26 10 5 11 11 . . . Fabricators 1 | . . . . . . . 1 . . . Repair Stations 3 | . . . . . . . 3 . . . Recycling Units 20 | . . 3 6 3 . . 7 . . 1 Scanalyzers . | . . . . . . . . . . . Garrison Access 6 | . . . . . 5 . 1 . . . Terminal Hacks 32 | . 1 3 13 6 3 . 6 . . . Prototype ID Bank 4 | . . 1 1 1 1 . . . . . Open Door 4 | . . . 4 . . . . . . . Alert Level 7 | . . 1 2 1 . . 3 . . . Locate Traps 3 | . 1 . 1 . . . 1 . . . Dispatch Records 5 | . . 1 2 1 . . 1 . . . Maintenance Status 2 | . . . 1 . . . 1 . . . Surveillance Status 1 | . . . . 1 . . . . . . Investigation Status 1 | . . . 1 . . . . . . . Reinforcement Status 1 | . . . . 1 . . . . . . Hauler Manifests 1 | . . . . . 1 . . . . . Zone Layout 3 | . . . 1 1 1 . . . . . Fabricator Hacks 1 | . . . . . . . 1 . . . Network Status 1 | . . . . . . . 1 . . . Repair Station Hacks 1 | . . . . . . . 1 . . . Scan Component 1 | . . . . . . . 1 . . . Recycling Unit Hacks 10 | . . 1 4 3 . . 1 . . 1 Report Inventory 7 | . . 1 2 2 . . 1 . . 1 Retrieve Components 3 | . . . 2 1 . . . . . . Scanalyzer . | . . . . . . . . . . . Garrison Access Hacks 1 | . . . . . 1 . . . . . Unlock Access 1 | . . . . . 1 . . . . . Unauthorized Hacks . | . . . . . . . . . . . Terminals . | . . . . . . . . . . . Fabricators . | . . . . . . . . . . . Repair Stations . | . . . . . . . . . . . Recycling Units . | . . . . . . . . . . . Scanalyzers . | . . . . . . . . . . . Garrison Access . | . . . . . . . . . . . Data Cores Recovered . | . . . . . . . . . . . Used . | . . . . . . . . . . . Hacking Detections 30 | . 1 2 8 3 2 3 10 . . 1 Full Trace Events 5 | . . . 2 . . 1 2 . . . Feedback Events . | . . . . . . . . . . . Feedback Blocked . | . . . . . . . . . . . Robot Schematics Acquired . | . . . . . . . . . . . Robots Built . | . . . . . . . . . . . Authchips . | . . . . . . . . . . . Time . | . . . . . . . . . . . Total Robot Build Rating . | . . . . . . . . . . . Part Schematics Acquired . | . . . . . . . . . . . Parts Built . | . . . . . . . . . . . Authchips . | . . . . . . . . . . . Time . | . . . . . . . . . . . Total Part Build Rating . | . . . . . . . . . . . Parts Repaired . | . . . . . . . . . . . Time . | . . . . . . . . . . . Parts Recycled . | . . . . . . . . . . . Recycled Matter . | . . . . . . . . . . . Retrieved Matter . | . . . . . . . . . . . Retrieved Components 8 | . . . 5 3 . . . . . . Parts Scanalyzed . | . . . . . . . . . . . Part Schematics Acquired . | . . . . . . . . . . . Parts Damaged . | . . . . . . . . . . . Bothacking | -11 -10 -9 -9 -9 -7 -7 -7 -7 -7 -6 ------------ Run | Yrd Mat Mat Sto Rec Fac Gar Fac Low Low Fac Used RIF Installer . | . . . . . . . . . . . Robots Hacked . | . . . . . . . . . . . Non-combat . | . . . . . . . . . . . Combat . | . . . . . . . . . . . Robot Hacks Applied . | . . . . . . . . . . . Relay Couplers Released 11 | . . . . . . 11 . . . . Machine Destruction 11 | . . . . . . 11 . . . . Fabnet Peak Effective % . | . . . . . . . . . . . Robots Rewired . | . . . . . . . . . . . Allies Hacked . | . . . . . . . . . . . Hacks Repelled . | . . . . . . . . . . . Allies | -11 -10 -9 -9 -9 -7 -7 -7 -7 -7 -6 -------- Run | Yrd Mat Mat Sto Rec Fac Gar Fac Low Low Fac Total Allies 12 | . . . 12 . . . . . . . Largest Group 11 | . . . 11 6 6 6 . . . . Highest-Rated Group 142 | . . . 142 71 71 71 . . . . Highest-Rated Ally 31 | . . . 31 31 31 31 . . . . Total Orders 2 | . . . 2 . . . . . . . ROAM 1 | . . . 1 . . . . . . . FOLLOW 1 | . . . 1 . . . . . . . Ally Attacks 69 | . . . 40 11 . 18 . . . . Total Damage 722 | . . . 406 162 . 154 . . . . Kills 14 | . . . 9 1 . 4 . . . . Allies Corrupted 2 | . . . 2 . . . . . . . Allies Melted . | . . . . . . . . . . . Intel | -11 -10 -9 -9 -9 -7 -7 -7 -7 -7 -6 ------- Run | Yrd Mat Mat Sto Rec Fac Gar Fac Low Low Fac Robot Analysis Total . | . . . . . . . . . . . Derelict Logs Recovered . | . . . . . . . . . . . Drone Launches . | . . . . . . . . . . . Drone Recoveries . | . . . . . . . . . . . Exploration | -11 -10 -9 -9 -9 -7 -7 -7 -7 -7 -6 ------------- Run | Yrd Mat Mat Sto Rec Fac Gar Fac Low Low Fac Turns Passed 5796 | 67 249 241 1170 235 80 1252 1458 246 82 716 Spaces Moved 3460 | 48 156 116 666 223 56 667 968 197 29 334 Core 60 | 7 . . 1 . . . 4 . . 48 Treads . | . . . . . . . . . . . Legs 1717 | 41 156 116 451 . . . 507 197 29 220 Wheels 518 | . . . . . . . 452 . . 66 Hover . | . . . . . . . . . . . Flight 1165 | . . . 214 223 56 667 5 . . . Fastest Speed 34 | 50 120 120 101 101 101 34 100 122 122 50 Average Speed 121 | 109 129 181 138 101 101 105 116 122 124 130 Slowest Speed 950 | 120 190 190 600 101 101 178 200 122 193 950 Overloaded Moves . | . . . . . . . . . . . Propulsion Burnouts . | . . . . . . . . . . . Robots Hopped . | . . . . . . . . . . . Cave-ins Triggered . | . . . . . . . . . . . Exploration Rate (%) 30 | 5 26 11 79 59 2 72 23 38 7 9 Regions Visited 10 Branch Regions 4 Pre-discovered Areas 1 | . . . . . . . . 1 . . Known Exits Taken 1 | . . . . . 1 . . . . . Unknown Exits Taken 8 | 1 1 1 1 1 . . 1 1 1 . Scrap Searched 2 | . . . . . . . . 1 1 . Spaces Dug 2 | . . . . . . 2 . . . . Terrain Destroyed 321 | . . . 27 14 6 14 120 38 94 8 Melee 2 | . . . . . . 2 . . . . Projectile 11 | . . . . . . . 3 . . 8 AOE 308 | . . . 27 14 6 12 117 38 94 . Terrain Rammed . | . . . . . . . . . . . Walls Destroyed . | . . . . . . . . . . . Machines Disabled . | . . . . . . . . . . . Actions | -11 -10 -9 -9 -9 -7 -7 -7 -7 -7 -6 --------- Run | Yrd Mat Mat Sto Rec Fac Gar Fac Low Low Fac Total 4534 | 59 201 143 839 232 77 1063 1182 199 46 493 Wait 178 | . 17 . 32 6 12 55 39 . 1 16 Move 3446 | 47 155 115 665 222 55 662 967 196 28 334 Hop . | . . . . . . . . . . . Pick Up 139 | 6 14 10 21 2 . 30 40 . . 16 Fast Attach 73 | 6 . 3 17 . 1 6 16 1 1 22 Attach 60 | . 1 2 9 . 5 14 15 . 5 9 Detach 4 | . . . 1 . 1 . 2 . . . Swap 13 | . 2 1 2 . . 7 . . . 1 Drop 124 | . 8 9 34 1 1 15 45 1 . 10 Fire 282 | . 3 3 57 1 2 78 58 1 11 68 Melee 23 | . . . . . . 6 . . . 17 Ram . | . . . . . . . . . . . Kick 1 | . 1 . . . . . . . . . Crush . | . . . . . . . . . . . Escape Stasis 190 | . . . . . . 190 . . . . Rewire 1 | . . . 1 . . . . . . . Trap . | . . . . . . . . . . . Miscellaneous . | . . . . . . . . . . . Route ------- -11/Scrapyard -10/Materials -9/Materials -9/Storage -9/Recycling -7/Factory -7/Garrison (discovered 3 exits: *Fac x3) -7/Factory -7/Lower Caves -7/Lower Caves -6/Factory History --------- Turn | Location | Event 3 | -11/Scrapyard | Discovered new exit (range 15) 68 | -11/Scrapyard | Entered Materials 261 | -10/Materials | Discovered new exit (range 9) 317 | -10/Materials | Entered another Materials area 317 | -9/Materials | Evolved 2 slots: Propulsion x2 370 | -9/Materials | Build established: Mutant 455 | -9/Materials | Discovered new exit (range 15) 558 | -9/Materials | Entered Storage 911 | -9/Storage | Lost 5 parts (2p2n1w) 1041 | -9/Storage | Assisted by bots powering up and referring to "LRC-V3" 1334 | -9/Storage | Build established: Commander-Mutant 1507 | -9/Storage | Met a pair of Derelict thieves 1552 | -9/Storage | Garrison activated, responded to threat 1553 | -9/Storage | Core integrity fell below 50% 1576 | -9/Storage | Destroyed 7 combat bots 1650 | -9/Storage | Found Prototype Launcher 1650 | -9/Storage | Identified Gui. Missile Launcher 1718 | -9/Storage | Used back door to open Recycling access 1718 | -9/Storage | Discovered new exit (range 4) 1728 | -9/Storage | Entered Recycling 1728 | -9/Recycling | Accompanied by 6 allies 1942 | -9/Recycling | Discovered new exit (range 15) 1963 | -9/Recycling | Entered Factory 1963 | -7/Factory | Accompanied by 6 allies 1963 | -7/Factory | Evolved 4 slots: Power x1, Utility x2, Weapon x1 2030 | -7/Factory | Identified exit to Garrison 2043 | -7/Factory | Entered Garrison 2043 | -7/Garrison | Accompanied by 6 allies 2081 | -7/Garrison | Triggered checkpoint 2120 | -7/Garrison | Lost 4 allies 2124 | -7/Garrison | Garrison Relay disabled 2184 | -7/Garrison | Triggered checkpoint 2244 | -7/Garrison | Destroyed 13 combat bots 2249 | -7/Garrison | Lost 8 parts (2p1n1u4w) 2255 | -7/Garrison | Triggered checkpoint 2387 | -7/Garrison | Discovered new exit (range 10) 2397 | -7/Garrison | Triggered checkpoint 2413 | -7/Garrison | Attempted to access garrison exit controls, blocked by remote lockdown 2462 | -7/Garrison | Garrison Relay disabled 2485 | -7/Garrison | Build established: Scavenger-Mutant 2581 | -7/Garrison | Triggered checkpoint 2623 | -7/Garrison | Discovered new exit (range 8) 2651 | -7/Garrison | Triggered checkpoint 2703 | -7/Garrison | Lost 4 parts (2p1n1w) 2858 | -7/Garrison | Attempted to access garrison exit controls, blocked by remote lockdown 2929 | -7/Garrison | Triggered checkpoint 3054 | -7/Garrison | Discovered new exit (range 13) 3069 | -7/Garrison | Lost 3 parts (2n1u) 3139 | -7/Garrison | Triggered checkpoint 3152 | -7/Garrison | Garrison Relay disabled 3295 | -7/Garrison | Entered Factory 3344 | -7/Factory | Build established: Scavenger-Tank 3665 | -7/Factory | Found Prototype Launcher 3665 | -7/Factory | Identified Rocket Array 3695 | -7/Factory | First assault squad dispatched 3704 | -7/Factory | Core integrity fell below 50% 3905 | -7/Factory | Build established: Tank 4497 | -7/Factory | Build established: Gunner 4746 | -7/Factory | Discovered new exit (range 4) 4753 | -7/Factory | Entered Lower Caves 4809 | -7/Lower Caves | Met a Warlord Commander 4810 | -7/Lower Caves | Learned location of Warlord (-5) 4811 | -7/Lower Caves | Warlord Commander delivered Encrypted Comm Array 4814 | -7/Lower Caves | Found Encrypted Comm Array 4935 | -7/Lower Caves | Discovered new exit (range 12) 4999 | -7/Lower Caves | Entered another Lower Caves area 5006 | -7/Lower Caves | Discovered new exit (range 5) 5008 | -7/Lower Caves | Attracted the attention of an 0b10 checkpoint 5023 | -7/Lower Caves | Core integrity fell below 20% 5053 | -7/Lower Caves | Lost 5 parts (2n3w) 5081 | -7/Lower Caves | Entered Factory 5081 | -6/Factory | Evolved 2 slots: Propulsion x1, Utility x1 5239 | -6/Factory | Lost 10 parts (1p4n3u2w) 5537 | -6/Factory | Build established: Scavenger-Mutant 5604 | -6/Factory | Spotted B-75 Beast 5694 | -6/Factory | Core integrity fell below 50% 5743 | -6/Factory | Core integrity fell below 20% 5792 | -6/Factory | Lost 19 parts (4p5n2u8w) 5797 | -6/Factory | Destroyed by B-75 Beast via exploding Neutrino Reactor Last Messages --------------- K-01 Serf collects debris. U-05 Engineer lays Concrete. Arm. Leg destroyed. U-05 Engineer lays Concrete. K-01 Serf collects debris. U-05 Engineer lays Concrete. Gatling Laser destroyed. U-05 Engineer lays Concrete. K-01 Serf collects debris. U-05 Engineer lays Concrete. Acquired Imp. Target Analyzer. Acquired Adv. Signal Interpreter. U-05 Engineer lays Concrete. Discarded Adv. Signal Interpreter. Acquired Prototype Protection. Identified Exp. Weapon Shielding. Acquired Thermic Laser. B-75 Beast suffers critical hit (Burn). Neutrino Reactor explodes. [Achievement: 10k Club] Map ----- +----------------------------------------------------+ | ??????????????????????????????????? | | # #??????????????????????????????????? | | # #############??????????????????????? | | # #??????????????????????? | | # ! #??????????????????????? | | #??????????????????????? | | #??????????????????????? | | # ] #??????????????????????? | | ?????????????????????????? | | #############??????????????????????? | | "" #??????????????????????? | | "" % #??????????????????????? | | "" #??????????????????????? | | ###########????????????? | | %= # #????????????? | | ####"##### # #????????????? | | # * # # !! #????????????? | | ## ! !!! # # !! #????????????? | | ## ! # + #????????????? | | #" !! # # #????????????? | | ## "" "" # # #????????????? | | ## """"" + BB # #????????????? | | ##+###################BB#############????????????? | | ?????????????????# #??????????????????? | | ?????????????????# #??????????????????? | | ?????????????????# @""" #??????????????????? | | ?????????????????# """ #??????????????????? | | ?????????????????# """ #??????????????????? | | !????????????????# #??????????????????? | | ???????????????# """ """ #??????????????????? | | "??????????????# """ """ #??????????????????? | | ? ""?????????????# """ """ #??????????????????? | | ??"""????????????#! #??????????????????? | | ?? ????????????# #??????????????????? | | ??? ????????????# ! #??????????????????? | | ????##???????????##############??????????????????? | | ?????????????????????????????????????????????????? | | ?????????????????????????????????????????????????? | | ?????????????????????????????????????????????????? | | ?????????????????????????????????????????????????? | | ?????????????????????????????????????????????????? | | ?????????????????????????????????????????????????? | | ?????????????????????????????????????????????????? | | ?????????????????????????????????????????????????? | | ?????????????????????????????????????????????????? | | ?????????????????????????????????????????????????? | | ?????????????????????????????????????????????????? | | ?????????????????????????????????????????????????? | | ?????????????????????????????????????????????????? | | ?????????????????????????????????????????????????? | +----------------------------------------------------+ Best States ------------- Heat Dissipation 91 Coolant Potential 50 Energy Generation 31 Energy Capacity 480 Matter Stores 300 Matter Capacity 300 Sight Range 22 Terrain Scan Density 10 Power Amplification 20 Additional Mass Support 12 EM Shielding 2 Armor Coverage 375 Utility Shielding 33 Weapon Shielding 90 Melee Speed Boost 20 Evasion (%) 63 Target Analysis 6 Defensive Hacking 10 Item Schematics ----------------- None Robot Schematics ------------------ None Fabricated ------------ Nothing Alien Tech Used ----------------- None Achievements -------------- 10k Club Maybe Next Time I'll Detach My Launcher Quick And Dirty Challenges ------------ None Game ------ Seed BackupSalvagingSink Manual? 0 Play Time 01:35:18 Cumulative 25.9 hours Start 2024.10.06 @ 18:20:24 End 2024.10.06 @ 20:14:14 Sessions 1 Manual Loads 0 Difficulty Rogue Special Mode None Game No. 42 Rogue 42 Adventurer 0 Explorer 0 Win Type - Total 0 Types 0/0/0/0/0/0/0/0/0 Lore% 9 Gallery% 31 Achievement% 22 Wizard Run 0 Options --------- Layout 1 ASCII 0 Keyboard 0 Movement Numpad Keybinds 0 Fullscreen 1 Font 24/Smallcaps Map View 50x35 Zoom Use 0% Tactical HUD 0 Map Filters NONE Filters NONE Steam 1 RUN: 5e18e2cc-e0c4-4b96-8eab-0c1910b15a91